Workbook

Sheet 注文書有 入力用 例
K1: 2022年4月1日改訂 | Z1: 2022年4月1日改訂
A2: 請 求 書（入力用） | Q2: 請 求 書（提出用）
I3: 請求年月日 | L3: 2022-03-31 | Y3: =I3 -> 請求年月日 | AB3: =L3 -> 2022-03-31
I4: ※西暦で記入してください。
G6: 〒 | H6: 164-0001 | W6: 〒 | X6: =H6 -> 164-0001
A7: 薩摩建設株式会社 御中 | F7: 住 所 | H7: 東京都中野区中野6-3-12 | Q7: 薩摩建設株式会社 御中 | V7: =F7 -> 住 所 | X7: =H7 -> 東京都中野区中野6-3-12
F9: 社 名 | H9: 薩摩建設株式会社 | N9: ㊞ | V9: =F9 -> 社 名 | X9: =H9 -> 薩摩建設株式会社 | AD9: ㊞
A11: 下記の通り請求致します。 | Q11: 下記の通り請求致します。
F12: 電 話 | H12: 03-3360-8861 | V12: =F12 -> 電 話 | X12: =H12 -> 03-3360-8861
A13: 請 求 金 額 （税込） | B13: =J30 -> 8800000 | Q13: =A13 -> 請 求 金 額 （税込） | R13: =Z30 -> 8800000
F14: F A X | H14: 03-3362-6245 | V14: =F14 -> F A X | X14: =H14 -> 03-3362-6245
A17: ※白欄のみに記入してください。右側に反映されます。
A18: 注 文 番 号 | B18: 1234 | D18: ※注文書より注文番号、工事名を記入してください。 | Q18: =A18 -> 注 文 番 号 | R18: =B18 -> 1234
A19: 工 事 名 | B19: 〇〇店舗新築工事 | I19: 弊社担当者名 | L19: 鈴木 | Q19: =A19 -> 工 事 名 | R19: =B19 -> 〇〇店舗新築工事 | Y19: =I19 -> 弊社担当者名 | AB19: =L19 -> 鈴木
A21: ※請求金額をご確認の上、ご提出をお願い致します。
B23: 税 抜 金 額 | E23: 消 費 税 金 額 | J23: 税 込 金 額 | R23: 税 抜 金 額 | U23: 消 費 税 金 額 | Z23: 税 込 金 額
A24: 請負金額 | B24: =ROUND(J24/1.1,0) -> 10000000 | E24: =J24-B24 -> 1000000 | J24: 11000000 | Q24: 請負金額 | R24: =B24 -> 10000000 | U24: =E24 -> 1000000 | Z24: =R24+U24 -> 11000000
A26: 総出来高額 | B26: =B28+B30 -> 9818182 | E26: =E30+E28 -> 981818 | J26: =J30+J28 -> 10800000 | Q26: 総出来高金額 | R26: =R28+R30 -> 9818182 | U26: =E26 -> 981818 | Z26: =R26+U26 -> 10800000
A28: 前回迄領収金額 | B28: =ROUND(J28/1.1,0) -> 1818182 | E28: =J28-B28 -> 181818 | J28: 2000000 | Q28: 前回迄領収金額 | R28: =B28 -> 1818182 | U28: =E28 -> 181818 | Z28: =R28+U28 -> 2000000
A30: 今回請求金額 | B30: =ROUND(J30/1.1,0) -> 8000000 | E30: =J30-B30 -> 800000 | J30: 8800000 | Q30: 今回請求金額 | R30: =B30 -> 8000000 | U30: =E30 -> 800000 | Z30: =R30+U30 -> 8800000
A32: 差引残金額 | B32: =B24-B26 -> 181818 | E32: =E24-E26 -> 18182 | J32: =B32+E32 -> 200000 | Q32: 差引残金額 | R32: =R24-R26+0.1 -> 181818.1 | U32: =U24-U26+0.1 -> 18182.1 | Z32: =R32+U32 -> 200000.2
A36: 【記入上の注意事項】
A37: ・工事名、注文番号、弊社担当者名を必ず記入してください。未記入の場合はお支払いできません。 | W37: 工事コード
A38: ・出来高９０％でご請求ください。
A39: ・１契約に付き１枚請求書を発行し、今後取決予定の工事の請求は今回請求金額のみに記入ください。
A40: ・振込先は取引先口座開設申請書件仕入先登録カードの情報通りにお支払い致します。 | W40: 査定金額
A41: ※振込先の変更の際は必ず本社迄ご連絡を宜しくお願い致します。
A43: 【留意事項】
A44: ・月末締翌月末日支払、毎月２日営業時間内に必着するよう、ご送付ください。
A45: （注）提出期日を過ぎて届いた請求書は、翌月分の取り扱いとなりますのでご留意ください。
A46: ・請求書の提出先は、現場事務所がある場合は、現場事務所宛にご送付ください。
A47: 現場事務所がない現場につきましては、現場ごとに区分して薩摩建設本社へご送付ください。
A48: 提出先は、各現場担当者へ事前に確認をお願い致します。
A49: ・「提出用」を１部ご提出ください。
A50: （左上の印刷ボタンをクリックすると提出用/控えがコピーされます。）
Z51: 2022年4月1日改訂
Q52: 請 求 書（控）
Q54: =Q3 -> 0 | Y54: =I3 -> 請求年月日 | AB54: =L3 -> 2022-03-31
W57: 〒 | X57: =H6 -> 164-0001
Q58: 薩摩建設株式会社 御中 | V58: 住 所 | X58: =H7 -> 東京都中野区中野6-3-12
V60: 社 名 | X60: 薩摩建設株式会社 | AD60: ㊞
Q61: 下記の通り請求いたします。
V62: 電 話 | X62: =H12 -> 03-3360-8861
Q63: =A13 -> 請 求 金 額 （税込） | R63: =W81 -> 0
V64: F A X | X64: =H14 -> 03-3362-6245
Q69: =A18 -> 注 文 番 号 | R69: =B18 -> 1234
Q70: 工 事 名 | R70: =B19 -> 〇〇店舗新築工事 | Y70: 弊社担当者名 | AB70: =L19 -> 鈴木
R74: 税 抜 金 額 | U74: 消 費 税 金 額 | Z74: 税 込 金 額
Q75: 請負金額 | R75: =B24 -> 10000000 | U75: =E24 -> 1000000 | Z75: =J24 -> 11000000
Q77: 総出来高金額 | R77: =B26 -> 9818182 | U77: =E26 -> 981818 | Z77: =R77+U77 -> 10800000
Q79: 前回迄領収金額 | R79: =B28 -> 1818182 | U79: =E28 -> 181818 | Z79: =J28 -> 2000000
Q81: 今回請求金額 | R81: =B30 -> 8000000 | U81: =E30 -> 800000 | Z81: =J30 -> 8800000
Q83: 差引残金額 | R83: =R75-R77+0.1 -> 181818.1 | U83: =U75-U77+0.1 -> 18182.1 | Z83: =R83+U83 -> 200000.2

Sheet 注文書有 入力用
K1: 2022年4月1日改訂 | Z1: 2022年4月1日改訂
A2: 請 求 書（入力用） | Q2: 請 求 書（提出用）
I3: 請求年月日 | Y3: =I3 -> 請求年月日 | AB3: =L3 -> 00:00:00
I4: ※西暦で記入してください。
G6: 〒 | W6: 〒 | X6: =H6 -> 0
A7: 薩摩建設株式会社 御中 | F7: 住 所 | Q7: 薩摩建設株式会社 御中 | V7: =F7 -> 住 所 | X7: =H7 -> 0
F9: 社 名 | N9: ㊞ | V9: =F9 -> 社 名 | X9: =H9 -> 0 | AD9: ㊞
A11: 下記の通り請求致します。 | Q11: 下記の通り請求致します。
F12: 電 話 | V12: =F12 -> 電 話 | X12: =H12 -> 0
A13: 請 求 金 額 （税込） | B13: =J30 -> 0 | Q13: =A13 -> 請 求 金 額 （税込） | R13: =Z30 -> 0
F14: F A X | V14: =F14 -> F A X | X14: =H14 -> 0
A17: ※白欄のみに記入してください。右側に反映されます。
A18: 注 文 番 号 | D18: ※注文書より注文番号、工事名を記入してください。 | Q18: =A18 -> 注 文 番 号 | R18: =B18 -> 0
A19: 工 事 名 | I19: 弊社担当者名 | Q19: =A19 -> 工 事 名 | R19: =B19 -> 0 | Y19: =I19 -> 弊社担当者名 | AB19: =L19 -> 0
A21: ※請求金額をご確認の上、ご提出をお願い致します。
B23: 税 抜 金 額 | E23: 消 費 税 金 額 | J23: 税 込 金 額 | R23: 税 抜 金 額 | U23: 消 費 税 金 額 | Z23: 税 込 金 額
A24: 請負金額 | B24: =ROUND(J24/1.1,0) -> 0 | E24: =J24-B24 -> 0 | Q24: 請負金額 | R24: =B24 -> 0 | U24: =E24 -> 0 | Z24: =R24+U24 -> 0
A26: 総出来高額 | B26: =B28+B30 -> 0 | E26: =E30+E28 -> 0 | J26: =J30+J28 -> 0 | Q26: 総出来高金額 | R26: =R28+R30 -> 0 | U26: =E26 -> 0 | Z26: =R26+U26 -> 0
A28: 前回迄領収金額 | B28: =ROUND(J28/1.1,0) -> 0 | E28: =J28-B28 -> 0 | Q28: 前回迄領収金額 | R28: =B28 -> 0 | U28: =E28 -> 0 | Z28: =R28+U28 -> 0
A30: 今回請求金額 | B30: =ROUND(J30/1.1,0) -> 0 | E30: =J30-B30 -> 0 | Q30: 今回請求金額 | R30: =B30 -> 0 | U30: =E30 -> 0 | Z30: =R30+U30 -> 0
A32: 差引残金額 | B32: =B24-B26+0.1 -> 0.1 | E32: =E24-E26+0.1 -> 0.1 | J32: =B32+E32 -> 0.2 | Q32: 差引残金額 | R32: =R24-R26+0.1 -> 0.1 | U32: =U24-U26+0.1 -> 0.1 | Z32: =R32+U32 -> 0.2
A36: 【記入上の注意事項】
A37: ・工事名、注文番号、弊社担当者名を必ず記入してください。未記入の場合はお支払いできません。 | W37: 工事コード
A38: ・出来高９０％でご請求ください。
A39: ・１契約に付き１枚請求書を発行し、今後取決予定の工事の請求は今回請求金額のみに記入ください。
A40: ・振込先は取引先口座開設申請書件仕入先登録カードの情報通りにお支払い致します。 | W40: 査定金額
A41: ※振込先の変更の際は必ず本社迄ご連絡を宜しくお願い致します。
A43: 【留意事項】
A44: ・月末締翌月末日支払、毎月２日営業時間内に必着するよう、ご送付ください。
A45: （注）提出期日を過ぎて届いた請求書は、翌月分の取り扱いとなりますのでご留意ください。
A46: ・請求書の提出先は、現場事務所がある場合は、現場事務所宛にご送付ください。
A47: 現場事務所がない現場につきましては、現場ごとに区分して薩摩建設本社へご送付ください。
A48: 提出先は、各現場担当者へ事前に確認をお願い致します。
A49: ・「提出用」を１部ご提出ください。
A50: （左上の印刷ボタンをクリックすると提出用/控えがコピーされます。）
Z51: 2022年4月1日改訂
Q52: 請 求 書（控）
Q54: =Q3 -> 0 | Y54: =I3 -> 請求年月日 | AB54: =L3 -> 00:00:00
W57: 〒 | X57: =H6 -> 0
Q58: 薩摩建設株式会社 御中 | V58: 住 所 | X58: =H7 -> 0
V60: 社 名 | X60: =H9 -> 0 | AD60: ㊞
Q61: 下記の通り請求いたします。
V62: 電 話 | X62: =H12 -> 0
Q63: =A13 -> 請 求 金 額 （税込） | R63: =B13 -> 0
V64: F A X | X64: =H14 -> 0
Q69: =A18 -> 注 文 番 号 | R69: =B18 -> 0
Q70: 工 事 名 | R70: =B19 -> 0 | Y70: 弊社担当者名 | AB70: =L19 -> 0
R74: 税 抜 金 額 | U74: 消 費 税 金 額 | Z74: 税 込 金 額
Q75: 請負金額 | R75: =B24 -> 0 | U75: =E24 -> 0 | Z75: =J24 -> 0
Q77: 総出来高金額 | R77: =B26 -> 0 | U77: =E26 -> 0 | Z77: =R77+U77 -> 0
Q79: 前回迄領収金額 | R79: =B28 -> 0 | U79: =E28 -> 0 | Z79: =J28 -> 0
Q81: 今回請求金額 | R81: =B30 -> 0 | U81: =E30 -> 0 | Z81: =J30 -> 0
Q83: 差引残金額 | R83: =R75-R77+0.1 -> 0.1 | U83: =U75-U77+0.1 -> 0.1 | Z83: =R83+U83 -> 0.2
